[Event "Titled Tuesday Blitz February 15 Late 2022"]
[White "Bon, Michael"]
[Black "Freitag, Manfred"]
[WhiteFideId "620696"]
[BlackFideId "1602004"]
[WhiteElo "2458"]
[BlackElo "2275"]
[Result "1-0"]
[Round "07"]
[TimeControl "180+1"]
[Date "2022.02.16"]
[WhiteClock "0:00:04"]
[BlackClock "0:00:06"]

1. e4 {[%clk 0:03:00]}  c6 {[%clk 0:02:59]} 2. d4 {[%clk 0:03:00]}  d5 {[%clk 0:02:59]} 3. e5 {[%clk 0:02:58]}  Bf5 {[%clk 0:02:59]} 4. c4 {[%clk 0:02:58]}  e6 {[%clk 0:02:59]} 5. Nc3 {[%clk 0:02:58]}  Bb4 {[%clk 0:02:56]} 6. Qb3 {[%clk 0:02:54]}  a5 {[%clk 0:02:56]} 7. a3 {[%clk 0:02:48]}  dxc4 {[%clk 0:02:56]} 8. Bxc4 {[%clk 0:02:43]}  Bxc3+ {[%clk 0:02:55]} 9. Qxc3 {[%clk 0:02:36]}  Ne7 {[%clk 0:02:52]} 10. Ne2 {[%clk 0:02:30]}  O-O {[%clk 0:02:51]} 11. O-O {[%clk 0:02:28]}  h6 {[%clk 0:02:48]} 12. Rd1 {[%clk 0:02:20]}  Nd7 {[%clk 0:02:44]} 13. Qg3 {[%clk 0:02:18]}  Bh7 {[%clk 0:02:35]} 14. Bf4 {[%clk 0:02:00]}  Nb6 {[%clk 0:02:28]} 15. Ba2 {[%clk 0:01:56]}  Nbd5 {[%clk 0:02:28]} 16. Bd2 {[%clk 0:01:48]}  Qb6 {[%clk 0:02:22]} 17. Bc3 {[%clk 0:01:29]}  Rfd8 {[%clk 0:02:06]} 18. Nf4 {[%clk 0:01:19]}  Nxf4 {[%clk 0:01:53]} 19. Qxf4 {[%clk 0:01:19]}  Nd5 {[%clk 0:01:43]} 20. Qg3 {[%clk 0:01:16]}  a4 {[%clk 0:01:29]} 21. Rac1 {[%clk 0:01:12]}  Nxc3 {[%clk 0:01:26]} 22. Qxc3 {[%clk 0:01:09]}  Ra5 {[%clk 0:01:17]} 23. Bc4 {[%clk 0:01:01]}  Bf5 {[%clk 0:01:14]} 24. Be2 {[%clk 0:00:57]}  Rd7 {[%clk 0:01:11]} 25. Rd2 {[%clk 0:00:52]}  Ra8 {[%clk 0:01:07]} 26. h3 {[%clk 0:00:47]}  Rad8 {[%clk 0:01:06]} 27. Rcd1 {[%clk 0:00:46]}  Qa7 {[%clk 0:00:57]} 28. Bf3 {[%clk 0:00:33]}  Qa6 {[%clk 0:00:43]} 29. Kh2 {[%clk 0:00:28]}  Qb5 {[%clk 0:00:37]} 30. Be2 {[%clk 0:00:20]}  Qb6 {[%clk 0:00:35]} 31. Bf3 {[%clk 0:00:19]}  g5 {[%clk 0:00:32]} 32. g3 {[%clk 0:00:16]}  Qb3 {[%clk 0:00:25]} 33. Kg2 {[%clk 0:00:16]}  Qb6 {[%clk 0:00:20]} 34. Qe3 {[%clk 0:00:14]}  Kg7 {[%clk 0:00:14]} 35. Kh2 {[%clk 0:00:14]}  Bg6 {[%clk 0:00:14]} 36. h4 {[%clk 0:00:14]}  gxh4 {[%clk 0:00:13]} 37. gxh4 {[%clk 0:00:15]}  Kh7 {[%clk 0:00:09]} 38. h5 {[%clk 0:00:14]}  Bf5 {[%clk 0:00:09]} 39. Be4 {[%clk 0:00:15]}  f6 {[%clk 0:00:06]} 40. Bxf5+ {[%clk 0:00:13]}  exf5 {[%clk 0:00:07]} 41. Qf4 {[%clk 0:00:12]}  fxe5 {[%clk 0:00:05]} 42. Qxf5+ {[%clk 0:00:12]}  Kh8 {[%clk 0:00:06]} 43. Qxe5+ {[%clk 0:00:12]}  Rg7 {[%clk 0:00:02]} 44. Rg1 {[%clk 0:00:11]}  Rg8 {[%clk 0:00:02]} 45. f4 {[%clk 0:00:10]}  Qd8 {[%clk 0:00:01]} 46. Rxg7 {[%clk 0:00:05]}  Rxg7 {[%clk 0:00:02]} 47. Rg2 {[%clk 0:00:05]}  Qh4+ {[%clk 0:00:02]} 48. Kg1 {[%clk 0:00:05]}  Qe7 {[%clk 0:00:02]} 49. Qxg7+ {[%clk 0:00:04]}  Qxg7 {[%clk 0:00:02]} 50. Rxg7 {[%clk 0:00:05]}  Kxg7 {[%clk 0:00:03]} 51. Kf2 {[%clk 0:00:05]}  Kf6 {[%clk 0:00:04]} 52. Ke3 {[%clk 0:00:05]}  Kf5 {[%clk 0:00:04]} 53. Kf3 {[%clk 0:00:05]}  b5 {[%clk 0:00:04]} 54. Ke3 {[%clk 0:00:05]}  Kg4 {[%clk 0:00:03]} 55. Ke4 {[%clk 0:00:05]}  Kxh5 {[%clk 0:00:04]} 56. f5 {[%clk 0:00:04]}  Kg5 {[%clk 0:00:04]} 57. Ke5 {[%clk 0:00:04]}  h5 {[%clk 0:00:05]} 58. f6 {[%clk 0:00:05]}  h4 {[%clk 0:00:05]} 59. f7 {[%clk 0:00:05]}  h3 {[%clk 0:00:06]} 60. f8=Q {[%clk 0:00:06]}  Kg4 {[%clk 0:00:07]} 61. Qg7+ {[%clk 0:00:05]}  Kf3 {[%clk 0:00:07]} 62. Qf6+ {[%clk 0:00:05]}  Kg2 {[%clk 0:00:07]} 63. Qg5+ {[%clk 0:00:05]}  Kh1 {[%clk 0:00:07]} 64. Qc1+ {[%clk 0:00:05]}  Kg2 {[%clk 0:00:07]} 65. Qd2+ {[%clk 0:00:05]}  Kg1 {[%clk 0:00:07]} 66. Kf4 {[%clk 0:00:04]}  h2 {[%clk 0:00:06]} 67. Kg3 {[%clk 0:00:04]}  h1=Q {[%clk 0:00:06]} 68. Qe1# {[%clk 0:00:04]} 1-0


[Site "https://www.chess.com"]

[Event "Titled Tuesday Blitz February 15 Late 2022"]
[White "Deac, Bogdan-Daniel"]
[Black "Mikhailovsky, Vladimir"]
[WhiteFideId "1226380"]
[BlackFideId "34105414"]
[WhiteElo "2646"]
[BlackElo "2371"]
[Result "1-0"]
[Round "07"]
[TimeControl "180+1"]
[Date "2022.02.15"]
[WhiteClock "0:00:30"]
[BlackClock "0:00:01"]

1. e4 {[%clk 0:03:00]}  c6 {[%clk 0:03:00]} 2. Nf3 {[%clk 0:03:01]}  d5 {[%clk 0:03:01]} 3. d3 {[%clk 0:03:01]}  Qc7 {[%clk 0:03:00]} 4. exd5 {[%clk 0:03:01]}  cxd5 {[%clk 0:03:00]} 5. c4 {[%clk 0:03:01]}  Nf6 {[%clk 0:03:00]} 6. Nc3 {[%clk 0:03:01]}  e6 {[%clk 0:03:00]} 7. a3 {[%clk 0:03:00]}  Nc6 {[%clk 0:02:59]} 8. g3 {[%clk 0:02:59]}  g6 {[%clk 0:02:56]} 9. Bg2 {[%clk 0:02:52]}  Bg7 {[%clk 0:02:56]} 10. Bf4 {[%clk 0:02:34]}  Qd8 {[%clk 0:02:56]} 11. O-O {[%clk 0:02:31]}  O-O {[%clk 0:02:56]} 12. Qe2 {[%clk 0:02:31]}  b6 {[%clk 0:02:49]} 13. Rac1 {[%clk 0:02:18]}  Bb7 {[%clk 0:02:48]} 14. b4 {[%clk 0:02:19]}  Rc8 {[%clk 0:02:30]} 15. Nb5 {[%clk 0:02:18]}  Nh5 {[%clk 0:02:19]} 16. Bg5 {[%clk 0:01:57]}  Qd7 {[%clk 0:02:04]} 17. Rfd1 {[%clk 0:01:47]}  a6 {[%clk 0:01:56]} 18. Nc3 {[%clk 0:01:46]}  h6 {[%clk 0:01:49]} 19. Bd2 {[%clk 0:01:42]}  Nf6 {[%clk 0:01:01]} 20. Na4 {[%clk 0:01:39]}  Nd4 {[%clk 0:00:49]} 21. Nxd4 {[%clk 0:01:37]}  Qxa4 {[%clk 0:00:49]} 22. Bc3 {[%clk 0:01:36]}  Rfd8 {[%clk 0:00:45]} 23. Qb2 {[%clk 0:01:32]}  Qd7 {[%clk 0:00:40]} 24. Nf3 {[%clk 0:01:26]}  Ne8 {[%clk 0:00:23]} 25. Bxg7 {[%clk 0:01:26]}  Nxg7 {[%clk 0:00:24]} 26. Ne5 {[%clk 0:01:26]}  Qe7 {[%clk 0:00:20]} 27. Ng4 {[%clk 0:01:26]}  f5 {[%clk 0:00:16]} 28. Ne5 {[%clk 0:01:22]}  dxc4 {[%clk 0:00:15]} 29. dxc4 {[%clk 0:01:05]}  Bxg2 {[%clk 0:00:15]} 30. Kxg2 {[%clk 0:01:06]}  Qf6 {[%clk 0:00:13]} 31. Qe2 {[%clk 0:01:02]}  f4 {[%clk 0:00:11]} 32. Ng4 {[%clk 0:00:54]}  Qg5 {[%clk 0:00:10]} 33. h4 {[%clk 0:00:53]}  Qe7 {[%clk 0:00:02]} 34. Nxh6+ {[%clk 0:00:48]}  Kh7 {[%clk 0:00:03]} 35. Ng4 {[%clk 0:00:49]}  fxg3 {[%clk 0:00:03]} 36. fxg3 {[%clk 0:00:49]}  Nf5 {[%clk 0:00:04]} 37. Qe4 {[%clk 0:00:36]}  Qf7 {[%clk 0:00:03]} 38. c5 {[%clk 0:00:31]}  bxc5 {[%clk 0:00:03]} 39. bxc5 {[%clk 0:00:32]}  Rxd1 {[%clk 0:00:03]} 40. Rxd1 {[%clk 0:00:32]}  Rxc5 {[%clk 0:00:03]} 41. Rd7 {[%clk 0:00:32]}  Ne3+ {[%clk 0:00:01]} 42. Qxe3 {[%clk 0:00:30]}  Rc2+ {[%clk 0:00:01]} 43. Kh3 {[%clk 0:00:30]} 1-0


[Site "https://www.chess.com"]

[Event "Titled Tuesday Blitz February 15 Late 2022"]
[White "Demchenko, Anton"]
[Black "Remizov, Yaroslav"]
[WhiteFideId "4160258"]
[BlackFideId "34134015"]
[WhiteElo "2539"]
[BlackElo "2360"]
[Result "1-0"]
[Round "07"]
[TimeControl "180+1"]
[Date "2022.02.15"]
[WhiteClock "0:00:11"]
[BlackClock "0:00:07"]

1. e4 {[%clk 0:03:00]}  e6 {[%clk 0:03:00]} 2. d4 {[%clk 0:03:00]}  a6 {[%clk 0:03:00]} 3. Nf3 {[%clk 0:02:56]}  c5 {[%clk 0:03:01]} 4. d5 {[%clk 0:02:56]}  d6 {[%clk 0:02:58]} 5. dxe6 {[%clk 0:02:44]}  Bxe6 {[%clk 0:02:56]} 6. Ng5 {[%clk 0:02:43]}  Nc6 {[%clk 0:02:50]} 7. Nc3 {[%clk 0:02:37]}  Nf6 {[%clk 0:02:42]} 8. f4 {[%clk 0:02:33]}  Be7 {[%clk 0:02:40]} 9. Be2 {[%clk 0:02:27]}  Qd7 {[%clk 0:02:28]} 10. f5 {[%clk 0:02:26]}  Bxf5 {[%clk 0:02:23]} 11. exf5 {[%clk 0:02:27]}  Qxf5 {[%clk 0:02:24]} 12. Qd3 {[%clk 0:02:23]}  Qxd3 {[%clk 0:02:09]} 13. Bxd3 {[%clk 0:02:21]}  d5 {[%clk 0:02:08]} 14. O-O {[%clk 0:02:11]}  h6 {[%clk 0:02:07]} 15. Nh3 {[%clk 0:02:06]}  b5 {[%clk 0:01:50]} 16. Nf4 {[%clk 0:01:54]}  O-O-O {[%clk 0:01:46]} 17. a4 {[%clk 0:01:53]}  b4 {[%clk 0:01:38]} 18. Bxa6+ {[%clk 0:01:52]}  Kc7 {[%clk 0:01:39]} 19. Nce2 {[%clk 0:01:48]}  c4 {[%clk 0:01:36]} 20. Bb5 {[%clk 0:01:43]}  Bc5+ {[%clk 0:01:35]} 21. Kh1 {[%clk 0:01:43]}  Nd4 {[%clk 0:01:32]} 22. Nxd4 {[%clk 0:01:41]}  Bxd4 {[%clk 0:01:33]} 23. Ne2 {[%clk 0:01:37]}  Bc5 {[%clk 0:01:26]} 24. b3 {[%clk 0:01:29]}  Ne4 {[%clk 0:01:11]} 25. g3 {[%clk 0:01:26]}  cxb3 {[%clk 0:00:36]} 26. cxb3 {[%clk 0:01:20]}  f6 {[%clk 0:00:36]} 27. Nf4 {[%clk 0:01:16]}  Kb7 {[%clk 0:00:19]} 28. Ne6 {[%clk 0:01:11]}  Rc8 {[%clk 0:00:19]} 29. Nxc5+ {[%clk 0:01:06]}  Rxc5 {[%clk 0:00:20]} 30. Bd3 {[%clk 0:00:49]}  Rc3 {[%clk 0:00:19]} 31. Bxe4 {[%clk 0:00:47]}  dxe4 {[%clk 0:00:20]} 32. Bd2 {[%clk 0:00:48]}  Rxb3 {[%clk 0:00:18]} 33. Rab1 {[%clk 0:00:48]}  Rxb1 {[%clk 0:00:18]} 34. Rxb1 {[%clk 0:00:49]}  Ka6 {[%clk 0:00:15]} 35. Rxb4 {[%clk 0:00:47]}  Rd8 {[%clk 0:00:15]} 36. Be3 {[%clk 0:00:46]}  f5 {[%clk 0:00:15]} 37. Rb6+ {[%clk 0:00:43]}  Ka5 {[%clk 0:00:16]} 38. Rb5+ {[%clk 0:00:44]}  Kxa4 {[%clk 0:00:16]} 39. Rxf5 {[%clk 0:00:45]}  Re8 {[%clk 0:00:16]} 40. Kg2 {[%clk 0:00:43]}  Kb3 {[%clk 0:00:16]} 41. Rc5 {[%clk 0:00:43]}  Kb4 {[%clk 0:00:16]} 42. Rc7 {[%clk 0:00:43]}  g5 {[%clk 0:00:16]} 43. Kf2 {[%clk 0:00:42]}  Ra8 {[%clk 0:00:14]} 44. Rc2 {[%clk 0:00:42]}  Kb3 {[%clk 0:00:14]} 45. Rd2 {[%clk 0:00:39]}  Kc3 {[%clk 0:00:14]} 46. Ke2 {[%clk 0:00:28]}  Ra4 {[%clk 0:00:14]} 47. Rd6 {[%clk 0:00:28]}  Ra2+ {[%clk 0:00:13]} 48. Bd2+ {[%clk 0:00:28]}  Kc4 {[%clk 0:00:13]} 49. Ke3 {[%clk 0:00:26]}  h5 {[%clk 0:00:12]} 50. Kxe4 {[%clk 0:00:24]}  h4 {[%clk 0:00:12]} 51. Rd4+ {[%clk 0:00:23]}  Kc5 {[%clk 0:00:12]} 52. Rd5+ {[%clk 0:00:23]}  Kc6 {[%clk 0:00:11]} 53. gxh4 {[%clk 0:00:18]}  gxh4 {[%clk 0:00:09]} 54. Rd3 {[%clk 0:00:17]}  h3 {[%clk 0:00:08]} 55. Bf4 {[%clk 0:00:16]}  Ra4+ {[%clk 0:00:06]} 56. Rd4 {[%clk 0:00:15]}  Ra2 {[%clk 0:00:05]} 57. Bg3 {[%clk 0:00:16]}  Re2+ {[%clk 0:00:05]} 58. Kf3 {[%clk 0:00:16]}  Re8 {[%clk 0:00:05]} 59. Kg4 {[%clk 0:00:14]}  Rh8 {[%clk 0:00:05]} 60. Rd3 {[%clk 0:00:13]}  Kc5 {[%clk 0:00:05]} 61. Rd7 {[%clk 0:00:12]}  Kc6 {[%clk 0:00:06]} 62. Rd1 {[%clk 0:00:11]}  Rh7 {[%clk 0:00:05]} 63. Bh4 {[%clk 0:00:12]}  Rh8 {[%clk 0:00:06]} 64. Kxh3 {[%clk 0:00:12]}  Rg8 {[%clk 0:00:06]} 65. Bg3 {[%clk 0:00:12]}  Rh8+ {[%clk 0:00:07]} 66. Kg2 {[%clk 0:00:12]}  Rg8 {[%clk 0:00:07]} 67. h4 {[%clk 0:00:13]}  Rh8 {[%clk 0:00:07]} 68. Kh3 {[%clk 0:00:13]}  Rh7 {[%clk 0:00:07]} 69. Bf4 {[%clk 0:00:13]}  Rh8 {[%clk 0:00:07]} 70. Bg5 {[%clk 0:00:14]}  Kc5 {[%clk 0:00:06]} 71. Kg4 {[%clk 0:00:14]}  Rg8 {[%clk 0:00:07]} 72. h5 {[%clk 0:00:15]}  Ra8 {[%clk 0:00:07]} 73. h6 {[%clk 0:00:15]}  Ra4+ {[%clk 0:00:07]} 74. Kh5 {[%clk 0:00:15]}  Ra1 {[%clk 0:00:07]} 75. Be3+ {[%clk 0:00:11]} 1-0


[Site "https://www.chess.com"]

[Event "Titled Tuesday Blitz February 15 Late 2022"]
[White "Dias, Joao Batista"]
[Black "Gatterer, Florian"]
[WhiteFideId "2108240"]
[BlackFideId "811688"]
[WhiteElo "1898"]
[BlackElo "2218"]
[Result "0-1"]
[Round "07"]
[TimeControl "180+1"]
[Date "2022.02.16"]
[WhiteClock "0:00:26"]
[BlackClock "0:00:04"]

1. e4 {[%clk 0:03:00]}  e5 {[%clk 0:02:57]} 2. Nf3 {[%clk 0:03:00]}  Nc6 {[%clk 0:02:56]} 3. d4 {[%clk 0:03:00]}  exd4 {[%clk 0:02:56]} 4. Nxd4 {[%clk 0:03:01]}  Nf6 {[%clk 0:02:56]} 5. Nxc6 {[%clk 0:03:01]}  bxc6 {[%clk 0:02:55]} 6. Bd3 {[%clk 0:03:02]}  d5 {[%clk 0:02:54]} 7. O-O {[%clk 0:03:01]}  Be7 {[%clk 0:02:47]} 8. exd5 {[%clk 0:02:59]}  cxd5 {[%clk 0:02:46]} 9. Re1 {[%clk 0:03:00]}  O-O {[%clk 0:02:46]} 10. Bg5 {[%clk 0:02:52]}  h6 {[%clk 0:02:43]} 11. Bh4 {[%clk 0:02:52]}  c6 {[%clk 0:02:43]} 12. Nc3 {[%clk 0:02:52]}  Rb8 {[%clk 0:02:33]} 13. b3 {[%clk 0:02:51]}  Bb4 {[%clk 0:02:29]} 14. Na4 {[%clk 0:02:44]}  Bxe1 {[%clk 0:02:23]} 15. Qxe1 {[%clk 0:02:44]}  Re8 {[%clk 0:02:20]} 16. Qc3 {[%clk 0:02:43]}  Qe7 {[%clk 0:02:10]} 17. h3 {[%clk 0:02:38]}  Qe5 {[%clk 0:01:54]} 18. Bxf6 {[%clk 0:02:30]}  gxf6 {[%clk 0:01:50]} 19. Rd1 {[%clk 0:02:23]}  Qxc3 {[%clk 0:01:40]} 20. Nxc3 {[%clk 0:02:23]}  Be6 {[%clk 0:01:22]} 21. Na4 {[%clk 0:02:22]}  Kg7 {[%clk 0:01:16]} 22. Kf1 {[%clk 0:02:20]}  a5 {[%clk 0:01:16]} 23. Nc5 {[%clk 0:02:19]}  Rb4 {[%clk 0:01:09]} 24. a4 {[%clk 0:02:18]}  Rbb8 {[%clk 0:01:06]} 25. Na6 {[%clk 0:02:12]}  Rbc8 {[%clk 0:01:03]} 26. Nc5 {[%clk 0:02:12]}  f5 {[%clk 0:01:03]} 27. f4 {[%clk 0:02:06]}  Kf6 {[%clk 0:01:02]} 28. Kf2 {[%clk 0:02:05]}  Rg8 {[%clk 0:01:00]} 29. Bf1 {[%clk 0:02:03]}  h5 {[%clk 0:00:58]} 30. Nb7 {[%clk 0:01:56]}  Ra8 {[%clk 0:00:57]} 31. Nd6 {[%clk 0:01:51]}  h4 {[%clk 0:00:55]} 32. Nb7 {[%clk 0:01:48]}  Rg3 {[%clk 0:00:53]} 33. Rd2 {[%clk 0:01:46]}  Ke7 {[%clk 0:00:46]} 34. Nc5 {[%clk 0:01:45]}  Ra7 {[%clk 0:00:44]} 35. Nd3 {[%clk 0:01:44]}  f6 {[%clk 0:00:36]} 36. Ne1 {[%clk 0:01:43]}  Rg8 {[%clk 0:00:27]} 37. Nf3 {[%clk 0:01:43]}  Rh8 {[%clk 0:00:16]} 38. Bd3 {[%clk 0:01:40]}  Kd6 {[%clk 0:00:15]} 39. Re2 {[%clk 0:01:33]}  Re7 {[%clk 0:00:15]} 40. Nd4 {[%clk 0:01:33]}  Bd7 {[%clk 0:00:14]} 41. Rd2 {[%clk 0:01:27]}  c5 {[%clk 0:00:14]} 42. Nxf5+ {[%clk 0:01:26]}  Bxf5 {[%clk 0:00:14]} 43. Bxf5 {[%clk 0:01:26]}  Rhe8 {[%clk 0:00:13]} 44. Bg4 {[%clk 0:01:25]}  Rb8 {[%clk 0:00:11]} 45. Bf3 {[%clk 0:01:25]}  d4 {[%clk 0:00:11]} 46. Rd1 {[%clk 0:01:18]}  Kc7 {[%clk 0:00:10]} 47. Bd5 {[%clk 0:01:14]}  Re3 {[%clk 0:00:10]} 48. Bc4 {[%clk 0:01:11]}  Rbe8 {[%clk 0:00:08]} 49. Rd2 {[%clk 0:01:04]}  R8e4 {[%clk 0:00:07]} 50. f5 {[%clk 0:00:52]}  Rf4+ {[%clk 0:00:07]} 51. Kg1 {[%clk 0:00:52]}  Rxf5 {[%clk 0:00:07]} 52. Kh2 {[%clk 0:00:51]}  Rf4 {[%clk 0:00:07]} 53. Bd3 {[%clk 0:00:50]}  Kd6 {[%clk 0:00:06]} 54. Bc4 {[%clk 0:00:47]}  Kc7 {[%clk 0:00:06]} 55. Bd3 {[%clk 0:00:46]}  Kd7 {[%clk 0:00:06]} 56. Bb5+ {[%clk 0:00:46]}  Kd6 {[%clk 0:00:05]} 57. Kg1 {[%clk 0:00:44]}  Rfe4 {[%clk 0:00:04]} 58. Kh2 {[%clk 0:00:44]}  Rf4 {[%clk 0:00:04]} 59. Bd3 {[%clk 0:00:43]}  Ke5 {[%clk 0:00:04]} 60. Bc4 {[%clk 0:00:42]}  f5 {[%clk 0:00:04]} 61. Bd3 {[%clk 0:00:39]}  Rfe4 {[%clk 0:00:04]} 62. Bxe4 {[%clk 0:00:38]}  fxe4 {[%clk 0:00:05]} 63. Kg1 {[%clk 0:00:39]}  Re1+ {[%clk 0:00:05]} 64. Kf2 {[%clk 0:00:39]}  Rc1 {[%clk 0:00:05]} 65. Re2 {[%clk 0:00:37]}  e3+ {[%clk 0:00:06]} 66. Kf3 {[%clk 0:00:37]}  Rf1+ {[%clk 0:00:06]} 67. Kg4 {[%clk 0:00:36]}  Rf2 {[%clk 0:00:05]} 68. Re1 {[%clk 0:00:33]}  Rxc2 {[%clk 0:00:05]} 69. g3 {[%clk 0:00:33]}  Ke4 {[%clk 0:00:05]} 70. gxh4 {[%clk 0:00:32]}  d3 {[%clk 0:00:06]} 71. h5 {[%clk 0:00:33]}  d2 {[%clk 0:00:05]} 72. Rf1 {[%clk 0:00:31]}  Rc1 {[%clk 0:00:05]} 73. Rf4+ {[%clk 0:00:31]}  Kd3 {[%clk 0:00:05]} 74. h6 {[%clk 0:00:30]}  Rg1+ {[%clk 0:00:05]} 75. Kf5 {[%clk 0:00:29]}  Rg8 {[%clk 0:00:05]} 76. h7 {[%clk 0:00:29]}  Rh8 {[%clk 0:00:05]} 77. Rh4 {[%clk 0:00:28]}  d1=Q {[%clk 0:00:05]} 78. Kg6 {[%clk 0:00:29]}  e2 {[%clk 0:00:05]} 79. Kg7 {[%clk 0:00:29]}  Rxh7+ {[%clk 0:00:05]} 80. Rxh7 {[%clk 0:00:28]}  e1=Q {[%clk 0:00:05]} 81. h4 {[%clk 0:00:29]}  Kc2 {[%clk 0:00:05]} 82. h5 {[%clk 0:00:29]}  Qd4+ {[%clk 0:00:05]} 83. Kg8 {[%clk 0:00:26]}  Qe8# {[%clk 0:00:04]} 0-1


[Site "https://www.chess.com"]

[Event "Titled Tuesday Blitz February 15 Late 2022"]
[White "Foisor, Sabina-Francesca"]
[Black "Tasev, Dejan"]
[WhiteFideId "1212915"]
[BlackFideId "936618"]
[WhiteElo "2243"]
[BlackElo "2253"]
[Result "1-0"]
[Round "07"]
[TimeControl "180+1"]
[Date "2022.02.16"]
[WhiteClock "0:00:07"]
[BlackClock "0:00:08"]

1. d4 {[%clk 0:03:00]}  Nf6 {[%clk 0:02:59]} 2. c4 {[%clk 0:02:59]}  e6 {[%clk 0:03:00]} 3. Nf3 {[%clk 0:02:54]}  d5 {[%clk 0:03:00]} 4. Nc3 {[%clk 0:02:51]}  Be7 {[%clk 0:03:00]} 5. Bf4 {[%clk 0:02:50]}  c6 {[%clk 0:03:00]} 6. e3 {[%clk 0:02:51]}  O-O {[%clk 0:03:00]} 7. Be2 {[%clk 0:02:50]}  Nbd7 {[%clk 0:02:58]} 8. O-O {[%clk 0:02:50]}  dxc4 {[%clk 0:02:59]} 9. Bxc4 {[%clk 0:02:49]}  b5 {[%clk 0:02:59]} 10. Bb3 {[%clk 0:02:48]}  Bb7 {[%clk 0:02:58]} 11. Qe2 {[%clk 0:02:46]}  a6 {[%clk 0:02:57]} 12. Rad1 {[%clk 0:02:42]}  Qb6 {[%clk 0:02:40]} 13. e4 {[%clk 0:02:30]}  b4 {[%clk 0:02:22]} 14. Nb1 {[%clk 0:02:18]}  c5 {[%clk 0:02:14]} 15. d5 {[%clk 0:02:05]}  exd5 {[%clk 0:02:14]} 16. exd5 {[%clk 0:02:05]}  Rfe8 {[%clk 0:02:04]} 17. Qd3 {[%clk 0:01:45]}  Bd6 {[%clk 0:01:55]} 18. Bg5 {[%clk 0:01:38]}  a5 {[%clk 0:01:49]} 19. Nbd2 {[%clk 0:01:37]}  Ba6 {[%clk 0:01:45]} 20. Bc4 {[%clk 0:01:35]}  Ng4 {[%clk 0:01:29]} 21. Bxa6 {[%clk 0:01:15]}  Rxa6 {[%clk 0:01:19]} 22. Nc4 {[%clk 0:01:15]}  Qb8 {[%clk 0:01:04]} 23. h3 {[%clk 0:01:09]}  Ngf6 {[%clk 0:00:54]} 24. Nxd6 {[%clk 0:00:45]}  Qxd6 {[%clk 0:00:49]} 25. Bf4 {[%clk 0:00:45]}  Qb6 {[%clk 0:00:46]} 26. Rfe1 {[%clk 0:00:44]}  Raa8 {[%clk 0:00:44]} 27. d6 {[%clk 0:00:41]}  Qc6 {[%clk 0:00:41]} 28. Re7 {[%clk 0:00:36]}  Rxe7 {[%clk 0:00:35]} 29. dxe7 {[%clk 0:00:37]}  Re8 {[%clk 0:00:35]} 30. Re1 {[%clk 0:00:35]}  h6 {[%clk 0:00:35]} 31. Qd6 {[%clk 0:00:26]}  Qc8 {[%clk 0:00:28]} 32. Nd2 {[%clk 0:00:22]}  c4 {[%clk 0:00:28]} 33. Ne4 {[%clk 0:00:20]}  Nxe4 {[%clk 0:00:28]} 34. Rxe4 {[%clk 0:00:21]}  c3 {[%clk 0:00:26]} 35. bxc3 {[%clk 0:00:20]}  bxc3 {[%clk 0:00:26]} 36. Re1 {[%clk 0:00:20]}  Nf6 {[%clk 0:00:24]} 37. Rc1 {[%clk 0:00:19]}  c2 {[%clk 0:00:24]} 38. Be5 {[%clk 0:00:15]}  Nd7 {[%clk 0:00:15]} 39. Bb2 {[%clk 0:00:13]}  Qb8 {[%clk 0:00:11]} 40. Qxd7 {[%clk 0:00:11]}  a4 {[%clk 0:00:11]} 41. Qd4 {[%clk 0:00:10]}  f6 {[%clk 0:00:11]} 42. Rxc2 {[%clk 0:00:09]}  Rxe7 {[%clk 0:00:10]} 43. Qc4+ {[%clk 0:00:08]}  Kh7 {[%clk 0:00:10]} 44. Qd3+ {[%clk 0:00:08]}  g6 {[%clk 0:00:09]} 45. g3 {[%clk 0:00:08]}  Re1+ {[%clk 0:00:09]} 46. Kg2 {[%clk 0:00:09]}  Qb7+ {[%clk 0:00:09]} 47. f3 {[%clk 0:00:07]}  Qe7 {[%clk 0:00:08]} 48. Bd4 {[%clk 0:00:05]}  a3 {[%clk 0:00:08]} 49. Bf2 {[%clk 0:00:05]}  Re6 {[%clk 0:00:07]} 50. Rd2 {[%clk 0:00:05]}  Qf7 {[%clk 0:00:07]} 51. Qd7 {[%clk 0:00:05]}  Re7 {[%clk 0:00:08]} 52. Qd5 {[%clk 0:00:06]}  Qg7 {[%clk 0:00:08]} 53. Qd3 {[%clk 0:00:06]}  Rf7 {[%clk 0:00:08]} 54. Re2 {[%clk 0:00:06]}  f5 {[%clk 0:00:08]} 55. Qxa3 {[%clk 0:00:06]}  f4 {[%clk 0:00:08]} 56. g4 {[%clk 0:00:05]}  Qf8 {[%clk 0:00:08]} 57. Qd3 {[%clk 0:00:05]}  Re7 {[%clk 0:00:08]} 58. Rxe7+ {[%clk 0:00:05]}  Qxe7 {[%clk 0:00:09]} 59. Qd4 {[%clk 0:00:05]}  Qf7 {[%clk 0:00:09]} 60. a4 {[%clk 0:00:05]}  Qa2 {[%clk 0:00:09]} 61. Qa7+ {[%clk 0:00:06]}  Kg8 {[%clk 0:00:08]} 62. a5 {[%clk 0:00:07]}  g5 {[%clk 0:00:08]} 63. a6 {[%clk 0:00:08]}  Qf7 {[%clk 0:00:07]} 64. Qxf7+ {[%clk 0:00:07]}  Kxf7 {[%clk 0:00:08]} 65. a7 {[%clk 0:00:07]} 1-0


[Site "https://www.chess.com"]

[Event "Titled Tuesday Blitz February 15 Late 2022"]
[White "Gracia Alvarez, Gerardo Antonio"]
[Black "Jaferian, Koosha"]
[WhiteFideId "5109124"]
[BlackFideId "12507440"]
[WhiteElo "2139"]
[BlackElo "2027"]
[Result "1-0"]
[Round "07"]
[TimeControl "180+1"]
[Date "2022.02.16"]
[WhiteClock "0:00:29"]
[BlackClock "0:00:44"]

1. e4 {[%clk 0:03:00]}  c6 {[%clk 0:03:00]} 2. c4 {[%clk 0:03:00]}  d5 {[%clk 0:03:01]} 3. cxd5 {[%clk 0:03:01]}  cxd5 {[%clk 0:03:01]} 4. exd5 {[%clk 0:03:01]}  Nf6 {[%clk 0:02:57]} 5. Qa4+ {[%clk 0:03:01]}  Nbd7 {[%clk 0:02:57]} 6. Nc3 {[%clk 0:03:01]}  g6 {[%clk 0:02:57]} 7. Bc4 {[%clk 0:03:01]}  Bg7 {[%clk 0:02:57]} 8. d3 {[%clk 0:02:59]}  O-O {[%clk 0:02:57]} 9. Nf3 {[%clk 0:02:59]}  a6 {[%clk 0:02:57]} 10. Qa3 {[%clk 0:02:58]}  b6 {[%clk 0:02:55]} 11. O-O {[%clk 0:02:58]}  Bb7 {[%clk 0:02:55]} 12. Re1 {[%clk 0:02:58]}  Re8 {[%clk 0:02:54]} 13. Qb4 {[%clk 0:02:58]}  b5 {[%clk 0:02:49]} 14. Bb3 {[%clk 0:02:58]}  Nb6 {[%clk 0:02:49]} 15. Qh4 {[%clk 0:02:58]}  Nbxd5 {[%clk 0:02:49]} 16. Ne5 {[%clk 0:02:58]}  e6 {[%clk 0:02:46]} 17. Bg5 {[%clk 0:02:57]}  Qd6 {[%clk 0:02:38]} 18. d4 {[%clk 0:02:56]}  Nd7 {[%clk 0:02:30]} 19. Ne4 {[%clk 0:02:46]}  Qc7 {[%clk 0:02:22]} 20. Rac1 {[%clk 0:02:41]}  Bxe5 {[%clk 0:02:00]} 21. Rxc7 {[%clk 0:02:35]}  Bxc7 {[%clk 0:02:01]} 22. Rc1 {[%clk 0:02:11]}  Bd8 {[%clk 0:01:53]} 23. Nd6 {[%clk 0:02:03]}  Bxg5 {[%clk 0:01:50]} 24. Qxg5 {[%clk 0:02:04]}  Reb8 {[%clk 0:01:46]} 25. Nxb7 {[%clk 0:01:55]}  Rxb7 {[%clk 0:01:46]} 26. Bxd5 {[%clk 0:01:54]}  exd5 {[%clk 0:01:47]} 27. Qxd5 {[%clk 0:01:53]}  Rab8 {[%clk 0:01:48]} 28. h3 {[%clk 0:01:45]}  Nf8 {[%clk 0:01:48]} 29. Rc6 {[%clk 0:01:40]}  Rd7 {[%clk 0:01:44]} 30. Qe4 {[%clk 0:01:35]}  Rbd8 {[%clk 0:01:37]} 31. Rxa6 {[%clk 0:01:29]}  Rxd4 {[%clk 0:01:37]} 32. Qc6 {[%clk 0:01:24]}  Rd1+ {[%clk 0:01:34]} 33. Kh2 {[%clk 0:01:24]}  R1d2 {[%clk 0:01:35]} 34. Qxb5 {[%clk 0:01:17]}  Rxf2 {[%clk 0:01:35]} 35. Qb7 {[%clk 0:01:02]}  Rdd2 {[%clk 0:01:33]} 36. b4 {[%clk 0:00:58]}  Ne6 {[%clk 0:01:29]} 37. Rxe6 {[%clk 0:00:51]}  fxe6 {[%clk 0:01:29]} 38. a4 {[%clk 0:00:49]}  Rf7 {[%clk 0:01:05]} 39. Qc8+ {[%clk 0:00:42]}  Kg7 {[%clk 0:01:03]} 40. Qxe6 {[%clk 0:00:42]}  Rdd7 {[%clk 0:00:57]} 41. Qe5+ {[%clk 0:00:38]}  Kf8 {[%clk 0:00:57]} 42. b5 {[%clk 0:00:37]}  h5 {[%clk 0:00:50]} 43. b6 {[%clk 0:00:35]}  Rf5 {[%clk 0:00:46]} 44. Qb8+ {[%clk 0:00:34]}  Kg7 {[%clk 0:00:45]} 45. b7 {[%clk 0:00:29]}  Rff7 {[%clk 0:00:44]} 46. Qe5+ {[%clk 0:00:29]} 1-0


[Site "https://www.chess.com"]